[Event "Titled Tuesday Blitz November 22 Late 2022"]
[White "Sztokbant, Bernardo Vainzoff"]
[Black "Kovacevic, Radmila"]
[WhiteFideId "2115956"]
[BlackFideId "933171"]
[WhiteElo "2228"]
[BlackElo "2208"]
[Result "1-0"]
[Round "08"]
[TimeControl "180+1"]
[Date "2022.11.23"]
[WhiteClock "0:01:41"]
[BlackClock "0:00:09"]

1. e4 {[%clk 0:03:00]}  e5 {[%clk 0:02:55]} 2. Nf3 {[%clk 0:03:01]}  f5 {[%clk 0:02:55]} 3. d4 {[%clk 0:03:00]}  fxe4 {[%clk 0:02:50]} 4. Nxe5 {[%clk 0:03:00]}  Nf6 {[%clk 0:02:48]} 5. Nc3 {[%clk 0:02:58]}  d6 {[%clk 0:02:47]} 6. Nc4 {[%clk 0:02:57]}  d5 {[%clk 0:02:37]} 7. Ne5 {[%clk 0:02:57]}  Bd6 {[%clk 0:02:36]} 8. Be2 {[%clk 0:02:56]}  Nbd7 {[%clk 0:02:33]} 9. Bf4 {[%clk 0:02:52]}  O-O {[%clk 0:02:29]} 10. O-O {[%clk 0:02:44]}  c6 {[%clk 0:02:21]} 11. Nxc6 {[%clk 0:02:42]}  bxc6 {[%clk 0:02:18]} 12. Bxd6 {[%clk 0:02:42]}  Rf7 {[%clk 0:02:09]} 13. f3 {[%clk 0:02:43]}  exf3 {[%clk 0:02:03]} 14. Bxf3 {[%clk 0:02:43]}  Nf8 {[%clk 0:02:00]} 15. Be5 {[%clk 0:02:41]}  Ng6 {[%clk 0:02:00]} 16. Bg3 {[%clk 0:02:41]}  Qb6 {[%clk 0:01:59]} 17. Na4 {[%clk 0:02:40]}  Qb4 {[%clk 0:01:57]} 18. c3 {[%clk 0:02:38]}  Qa5 {[%clk 0:01:56]} 19. Nc5 {[%clk 0:02:37]}  Ba6 {[%clk 0:01:43]} 20. Re1 {[%clk 0:02:36]}  Nd7 {[%clk 0:01:32]} 21. Ne6 {[%clk 0:02:26]}  Qb6 {[%clk 0:01:18]} 22. Qd2 {[%clk 0:02:15]}  Ngf8 {[%clk 0:01:09]} 23. Ng5 {[%clk 0:02:14]}  Rf6 {[%clk 0:01:07]} 24. Re7 {[%clk 0:02:11]}  h6 {[%clk 0:01:05]} 25. Nh3 {[%clk 0:02:08]}  Rxf3 {[%clk 0:00:46]} 26. gxf3 {[%clk 0:02:08]}  c5 {[%clk 0:00:44]} 27. Nf4 {[%clk 0:02:04]}  Bb7 {[%clk 0:00:35]} 28. Rae1 {[%clk 0:02:01]}  Nf6 {[%clk 0:00:26]} 29. dxc5 {[%clk 0:01:55]}  Qxc5+ {[%clk 0:00:25]} 30. Qd4 {[%clk 0:01:56]}  Qa5 {[%clk 0:00:22]} 31. Rxb7 {[%clk 0:01:52]}  Qxa2 {[%clk 0:00:22]} 32. Rxg7+ {[%clk 0:01:50]}  Kxg7 {[%clk 0:00:21]} 33. Re7+ {[%clk 0:01:49]}  Kg8 {[%clk 0:00:19]} 34. Qxf6 {[%clk 0:01:49]}  Qb1+ {[%clk 0:00:18]} 35. Kg2 {[%clk 0:01:43]}  Qc2+ {[%clk 0:00:17]} 36. Kh3 {[%clk 0:01:42]}  Qg6 {[%clk 0:00:10]} 37. Nxg6 {[%clk 0:01:41]}  Nxg6 {[%clk 0:00:09]} 38. Qg7# {[%clk 0:01:41]} 1-0


[Site "https://www.chess.com"]

[Event "Titled Tuesday Blitz November 22 Late 2022"]
[White "Tang, Andrew"]
[Black "Daggupati, Balaji"]
[WhiteFideId "2059630"]
[BlackFideId "2090759"]
[WhiteElo "2581"]
[BlackElo "2698"]
[Result "1-0"]
[Round "08"]
[TimeControl "180+1"]
[Date "2022.11.22"]
[WhiteClock "0:00:05"]
[BlackClock "0:00:03"]

1. d4 {[%clk 0:02:55]}  d5 {[%clk 0:02:58]} 2. Bf4 {[%clk 0:02:55]}  Nf6 {[%clk 0:02:58]} 3. e3 {[%clk 0:02:55]}  c5 {[%clk 0:02:58]} 4. Nc3 {[%clk 0:02:56]}  e6 {[%clk 0:02:48]} 5. Nb5 {[%clk 0:02:54]}  Na6 {[%clk 0:02:48]} 6. c3 {[%clk 0:02:54]}  Be7 {[%clk 0:02:44]} 7. a4 {[%clk 0:02:52]}  O-O {[%clk 0:02:44]} 8. Nf3 {[%clk 0:02:51]}  Bd7 {[%clk 0:02:40]} 9. Ne5 {[%clk 0:02:49]}  Be8 {[%clk 0:02:28]} 10. Bd3 {[%clk 0:02:23]}  Nb8 {[%clk 0:02:27]} 11. dxc5 {[%clk 0:02:05]}  Bxc5 {[%clk 0:02:20]} 12. Qf3 {[%clk 0:02:02]}  Nc6 {[%clk 0:02:11]} 13. Qh3 {[%clk 0:01:55]}  Ne7 {[%clk 0:01:40]} 14. b4 {[%clk 0:01:36]}  Bb6 {[%clk 0:01:36]} 15. a5 {[%clk 0:01:32]}  Bxb5 {[%clk 0:01:36]} 16. Bxb5 {[%clk 0:01:28]}  Bc7 {[%clk 0:01:35]} 17. Bd3 {[%clk 0:01:26]}  Ng6 {[%clk 0:01:28]} 18. Nxg6 {[%clk 0:01:25]}  hxg6 {[%clk 0:01:29]} 19. Bg5 {[%clk 0:01:22]}  Be5 {[%clk 0:01:28]} 20. Rc1 {[%clk 0:01:22]}  Qd6 {[%clk 0:01:19]} 21. O-O {[%clk 0:01:05]}  Nd7 {[%clk 0:01:14]} 22. Rfd1 {[%clk 0:00:36]}  Bf6 {[%clk 0:01:14]} 23. Bf4 {[%clk 0:00:34]}  Be5 {[%clk 0:01:14]} 24. Bg5 {[%clk 0:00:27]}  Bf6 {[%clk 0:01:14]} 25. Bf4 {[%clk 0:00:17]}  Be5 {[%clk 0:01:13]} 26. c4 {[%clk 0:00:17]}  Bxf4 {[%clk 0:01:07]} 27. exf4 {[%clk 0:00:16]}  Qxf4 {[%clk 0:01:08]} 28. cxd5 {[%clk 0:00:16]}  Rae8 {[%clk 0:00:53]} 29. Bb5 {[%clk 0:00:07]}  Re7 {[%clk 0:00:43]} 30. d6 {[%clk 0:00:04]}  Ree8 {[%clk 0:00:34]} 31. Bxd7 {[%clk 0:00:04]}  Rd8 {[%clk 0:00:35]} 32. Bb5 {[%clk 0:00:03]}  Qxb4 {[%clk 0:00:34]} 33. Qd3 {[%clk 0:00:04]}  a6 {[%clk 0:00:29]} 34. Bc4 {[%clk 0:00:04]}  Rd7 {[%clk 0:00:30]} 35. Rb1 {[%clk 0:00:04]}  Qxa5 {[%clk 0:00:30]} 36. Qe4 {[%clk 0:00:05]}  Qc5 {[%clk 0:00:25]} 37. Rbc1 {[%clk 0:00:04]}  Rxd6 {[%clk 0:00:16]} 38. Rxd6 {[%clk 0:00:04]}  Qxd6 {[%clk 0:00:16]} 39. Qxb7 {[%clk 0:00:04]}  Qa3 {[%clk 0:00:14]} 40. Rf1 {[%clk 0:00:04]}  a5 {[%clk 0:00:13]} 41. g3 {[%clk 0:00:04]}  Qc3 {[%clk 0:00:13]} 42. Ba2 {[%clk 0:00:04]}  Qa3 {[%clk 0:00:12]} 43. Qb1 {[%clk 0:00:04]}  Rd8 {[%clk 0:00:11]} 44. Qc2 {[%clk 0:00:04]}  Qb4 {[%clk 0:00:11]} 45. Qe2 {[%clk 0:00:04]}  Rd2 {[%clk 0:00:10]} 46. Qc4 {[%clk 0:00:04]}  Qb2 {[%clk 0:00:08]} 47. Qc8+ {[%clk 0:00:03]}  Kh7 {[%clk 0:00:08]} 48. Bb1 {[%clk 0:00:04]}  a4 {[%clk 0:00:07]} 49. Qc4 {[%clk 0:00:03]}  a3 {[%clk 0:00:07]} 50. Qh4+ {[%clk 0:00:03]}  Kg8 {[%clk 0:00:06]} 51. Qc4 {[%clk 0:00:04]}  a2 {[%clk 0:00:06]} 52. Bxa2 {[%clk 0:00:04]}  Qxa2 {[%clk 0:00:06]} 53. Qc8+ {[%clk 0:00:05]}  Kh7 {[%clk 0:00:06]} 54. Qc7 {[%clk 0:00:06]}  e5 {[%clk 0:00:06]} 55. Qxe5 {[%clk 0:00:06]}  Qd5 {[%clk 0:00:06]} 56. Qf4 {[%clk 0:00:06]}  Rd4 {[%clk 0:00:05]} 57. Qc1 {[%clk 0:00:06]}  Rc4 {[%clk 0:00:04]} 58. Qb1 {[%clk 0:00:06]}  Rd4 {[%clk 0:00:02]} 59. Qe1 {[%clk 0:00:07]}  Kg8 {[%clk 0:00:02]} 60. Qe8+ {[%clk 0:00:07]}  Kh7 {[%clk 0:00:03]} 61. Qe2 {[%clk 0:00:07]}  Re4 {[%clk 0:00:02]} 62. Qf3 {[%clk 0:00:08]}  Qf5 {[%clk 0:00:03]} 63. Qc3 {[%clk 0:00:08]}  Re8 {[%clk 0:00:03]} 64. Rd1 {[%clk 0:00:08]}  Kg8 {[%clk 0:00:03]} 65. h4 {[%clk 0:00:08]}  Qg4 {[%clk 0:00:02]} 66. Rc1 {[%clk 0:00:08]}  Qf5 {[%clk 0:00:03]} 67. Qd4 {[%clk 0:00:08]}  Qe5 {[%clk 0:00:03]} 68. Qd3 {[%clk 0:00:08]}  Qf5 {[%clk 0:00:03]} 69. Qa6 {[%clk 0:00:07]}  Qf6 {[%clk 0:00:03]} 70. Qb7 {[%clk 0:00:07]}  Qe6 {[%clk 0:00:04]} 71. Qf3 {[%clk 0:00:06]}  Qf5 {[%clk 0:00:04]} 72. Qd1 {[%clk 0:00:06]}  Qe6 {[%clk 0:00:04]} 73. Kh2 {[%clk 0:00:07]}  Qf6 {[%clk 0:00:04]} 74. Rc2 {[%clk 0:00:08]}  Qe6 {[%clk 0:00:04]} 75. Rd2 {[%clk 0:00:08]}  Qf6 {[%clk 0:00:05]} 76. Kg2 {[%clk 0:00:09]}  Qe6 {[%clk 0:00:05]} 77. Rd4 {[%clk 0:00:09]}  Qc6+ {[%clk 0:00:05]} 78. Kh2 {[%clk 0:00:10]}  Qe6 {[%clk 0:00:06]} 79. Qf3 {[%clk 0:00:10]}  Rf8 {[%clk 0:00:05]} 80. Rf4 {[%clk 0:00:10]}  Re8 {[%clk 0:00:06]} 81. Kg2 {[%clk 0:00:10]}  Rc8 {[%clk 0:00:05]} 82. Re4 {[%clk 0:00:07]}  Qf6 {[%clk 0:00:04]} 83. Qg4 {[%clk 0:00:07]}  Rf8 {[%clk 0:00:04]} 84. h5 {[%clk 0:00:07]}  gxh5 {[%clk 0:00:04]} 85. Qxh5 {[%clk 0:00:08]}  Qh6 {[%clk 0:00:04]} 86. Qd5 {[%clk 0:00:06]}  Qg6 {[%clk 0:00:04]} 87. Rh4 {[%clk 0:00:07]}  Rc8 {[%clk 0:00:02]} 88. Qd1 {[%clk 0:00:07]}  Qc6+ {[%clk 0:00:03]} 89. Kh2 {[%clk 0:00:07]}  Qg6 {[%clk 0:00:04]} 90. Qh1 {[%clk 0:00:07]}  Rc2 {[%clk 0:00:03]} 91. Qf3 {[%clk 0:00:07]}  Rc8 {[%clk 0:00:03]} 92. Qg2 {[%clk 0:00:07]}  Qf6 {[%clk 0:00:02]} 93. Kg1 {[%clk 0:00:05]}  g5 {[%clk 0:00:01]} 94. Rh5 {[%clk 0:00:03]}  Rc1+ {[%clk 0:00:01]} 95. Kh2 {[%clk 0:00:04]}  Rc2 {[%clk 0:00:02]} 96. Qa8+ {[%clk 0:00:04]}  Kg7 {[%clk 0:00:02]} 97. Qh8+ {[%clk 0:00:04]}  Kg6 {[%clk 0:00:02]} 98. Rh6+ {[%clk 0:00:05]}  Kf5 {[%clk 0:00:03]} 99. Qxf6+ {[%clk 0:00:05]} 1-0


[Site "https://www.chess.com"]

[Event "Titled Tuesday Blitz November 22 Late 2022"]
[White "Tarnowska, Aleksandra"]
[Black "Rios Escobar, Adan"]
[WhiteFideId "1180967"]
[BlackFideId "3403645"]
[WhiteElo "1776"]
[BlackElo "2323"]
[Result "0-1"]
[Round "08"]
[TimeControl "180+1"]
[Date "2022.11.23"]
[WhiteClock "0:00:01"]
[BlackClock "0:00:15"]

1. e4 {[%clk 0:03:00]}  c5 {[%clk 0:02:59]} 2. Nf3 {[%clk 0:03:00]}  d6 {[%clk 0:02:59]} 3. Bb5+ {[%clk 0:03:00]}  Nd7 {[%clk 0:02:58]} 4. O-O {[%clk 0:02:59]}  a6 {[%clk 0:02:57]} 5. Bxd7+ {[%clk 0:02:58]}  Bxd7 {[%clk 0:02:56]} 6. c3 {[%clk 0:02:57]}  Nf6 {[%clk 0:02:51]} 7. Re1 {[%clk 0:02:55]}  e6 {[%clk 0:02:26]} 8. d4 {[%clk 0:02:53]}  Be7 {[%clk 0:02:20]} 9. Nbd2 {[%clk 0:02:29]}  cxd4 {[%clk 0:02:19]} 10. cxd4 {[%clk 0:02:29]}  O-O {[%clk 0:02:19]} 11. Nf1 {[%clk 0:02:29]}  Rc8 {[%clk 0:02:12]} 12. Bd2 {[%clk 0:02:16]}  Bc6 {[%clk 0:02:08]} 13. Ng3 {[%clk 0:02:15]}  b5 {[%clk 0:02:01]} 14. Rc1 {[%clk 0:02:09]}  Qb6 {[%clk 0:01:56]} 15. Bf4 {[%clk 0:01:38]}  Qb7 {[%clk 0:01:49]} 16. Qd3 {[%clk 0:01:31]}  Bd8 {[%clk 0:01:43]} 17. Ng5 {[%clk 0:01:17]}  h6 {[%clk 0:01:37]} 18. Nf3 {[%clk 0:01:11]}  Ba5 {[%clk 0:01:31]} 19. Nd2 {[%clk 0:01:01]}  Rfd8 {[%clk 0:01:30]} 20. a3 {[%clk 0:00:43]}  Bb6 {[%clk 0:01:21]} 21. b4 {[%clk 0:00:41]}  g5 {[%clk 0:01:17]} 22. Be3 {[%clk 0:00:29]}  Ng4 {[%clk 0:01:16]} 23. h3 {[%clk 0:00:20]}  Nxe3 {[%clk 0:01:16]} 24. fxe3 {[%clk 0:00:21]}  Be8 {[%clk 0:00:44]} 25. Qe2 {[%clk 0:00:20]}  f6 {[%clk 0:00:40]} 26. Rf1 {[%clk 0:00:20]}  Qg7 {[%clk 0:00:31]} 27. Rxc8 {[%clk 0:00:18]}  Rxc8 {[%clk 0:00:31]} 28. Qf3 {[%clk 0:00:12]}  Rc2 {[%clk 0:00:23]} 29. Rf2 {[%clk 0:00:11]}  e5 {[%clk 0:00:20]} 30. dxe5 {[%clk 0:00:09]}  dxe5 {[%clk 0:00:19]} 31. Nf5 {[%clk 0:00:08]}  Qf8 {[%clk 0:00:19]} 32. Kh2 {[%clk 0:00:06]}  Bg6 {[%clk 0:00:19]} 33. Ng3 {[%clk 0:00:05]}  Kg7 {[%clk 0:00:17]} 34. Nh5+ {[%clk 0:00:04]}  Bxh5 {[%clk 0:00:17]} 35. Qxh5 {[%clk 0:00:05]}  Bxe3 {[%clk 0:00:16]} 36. Re2 {[%clk 0:00:01]}  Bxd2 {[%clk 0:00:16]} 37. Qh4 {[%clk 0:00:01]}  gxh4 {[%clk 0:00:15]} 0-1


[Site "https://www.chess.com"]

[Event "Titled Tuesday Blitz November 22 Late 2022"]
[White "Toncheva, Nadya"]
[Black "monkins"]
[WhiteFideId "2924056"]
[WhiteElo "2101"]
[BlackElo "2307"]
[Result "1-0"]
[Round "08"]
[TimeControl "180+1"]
[Date "2022.11.23"]
[WhiteClock "0:00:12"]
[BlackClock "0:00:01"]

1. d4 {[%clk 0:03:00]}  Nf6 {[%clk 0:02:59]} 2. c4 {[%clk 0:03:01]}  c5 {[%clk 0:02:59]} 3. d5 {[%clk 0:03:01]}  b5 {[%clk 0:03:00]} 4. cxb5 {[%clk 0:03:02]}  a6 {[%clk 0:03:00]} 5. b6 {[%clk 0:03:02]}  Qxb6 {[%clk 0:02:59]} 6. Nc3 {[%clk 0:03:02]}  g6 {[%clk 0:02:57]} 7. e4 {[%clk 0:03:02]}  d6 {[%clk 0:02:57]} 8. Bd3 {[%clk 0:02:54]}  Bg7 {[%clk 0:02:56]} 9. a4 {[%clk 0:02:53]}  a5 {[%clk 0:02:41]} 10. Nf3 {[%clk 0:02:47]}  Ba6 {[%clk 0:02:40]} 11. Bb5+ {[%clk 0:02:43]}  Nbd7 {[%clk 0:02:26]} 12. O-O {[%clk 0:02:40]}  O-O {[%clk 0:02:25]} 13. Nd2 {[%clk 0:02:36]}  Bxb5 {[%clk 0:01:44]} 14. axb5 {[%clk 0:02:33]}  Ne5 {[%clk 0:01:17]} 15. Qe2 {[%clk 0:02:29]}  Rfc8 {[%clk 0:01:08]} 16. Nc4 {[%clk 0:02:20]}  Nxc4 {[%clk 0:01:04]} 17. Qxc4 {[%clk 0:02:21]}  Nd7 {[%clk 0:00:49]} 18. Bg5 {[%clk 0:02:12]}  Ne5 {[%clk 0:00:48]} 19. Qe2 {[%clk 0:02:09]}  Qb7 {[%clk 0:00:37]} 20. f4 {[%clk 0:01:58]}  h6 {[%clk 0:00:29]} 21. Bh4 {[%clk 0:01:54]}  g5 {[%clk 0:00:21]} 22. fxe5 {[%clk 0:01:44]}  gxh4 {[%clk 0:00:19]} 23. Qh5 {[%clk 0:01:14]}  Rf8 {[%clk 0:00:16]} 24. exd6 {[%clk 0:01:09]}  exd6 {[%clk 0:00:16]} 25. Qxh4 {[%clk 0:01:07]}  c4 {[%clk 0:00:12]} 26. Kh1 {[%clk 0:01:06]}  Qb6 {[%clk 0:00:10]} 27. Qg4 {[%clk 0:01:03]}  Kh8 {[%clk 0:00:09]} 28. Rf3 {[%clk 0:01:01]}  Qd4 {[%clk 0:00:07]} 29. Rd1 {[%clk 0:00:58]}  Qe5 {[%clk 0:00:06]} 30. Rf5 {[%clk 0:00:52]}  Qe7 {[%clk 0:00:06]} 31. Rdf1 {[%clk 0:00:49]}  a4 {[%clk 0:00:06]} 32. Qh3 {[%clk 0:00:29]}  a3 {[%clk 0:00:05]} 33. bxa3 {[%clk 0:00:25]}  Rxa3 {[%clk 0:00:05]} 34. R5f3 {[%clk 0:00:26]}  Kg8 {[%clk 0:00:04]} 35. Qg4 {[%clk 0:00:24]}  Qg5 {[%clk 0:00:03]} 36. Qxg5 {[%clk 0:00:20]}  hxg5 {[%clk 0:00:04]} 37. Ne2 {[%clk 0:00:18]}  Rb3 {[%clk 0:00:04]} 38. Rc1 {[%clk 0:00:16]}  Rxb5 {[%clk 0:00:03]} 39. Rxc4 {[%clk 0:00:13]}  Re8 {[%clk 0:00:03]} 40. Kg1 {[%clk 0:00:13]}  Rb1+ {[%clk 0:00:02]} 41. Kf2 {[%clk 0:00:13]}  Be5 {[%clk 0:00:02]} 42. g3 {[%clk 0:00:13]}  Kg7 {[%clk 0:00:01]} 43. Ra3 {[%clk 0:00:12]} 1-0


[Site "https://www.chess.com"]

[Event "Titled Tuesday Blitz November 22 Late 2022"]
[White "Toniutti, Ezio"]
[Black "Guzman, Christopher"]
[WhiteFideId "113034"]
[BlackFideId "6405096"]
[WhiteElo "2215"]
[BlackElo "2272"]
[Result "0-1"]
[Round "08"]
[TimeControl "180+1"]
[Date "2022.11.23"]
[WhiteClock "0:00:05"]
[BlackClock "0:00:32"]

1. d4 {[%clk 0:02:57]}  Nf6 {[%clk 0:02:59]} 2. c4 {[%clk 0:02:56]}  e6 {[%clk 0:02:59]} 3. g3 {[%clk 0:02:56]}  Bb4+ {[%clk 0:02:58]} 4. Bd2 {[%clk 0:02:56]}  Be7 {[%clk 0:02:58]} 5. Nf3 {[%clk 0:02:56]}  b6 {[%clk 0:02:58]} 6. Bg2 {[%clk 0:02:56]}  Bb7 {[%clk 0:02:59]} 7. O-O {[%clk 0:02:56]}  O-O {[%clk 0:02:59]} 8. Nc3 {[%clk 0:02:54]}  d5 {[%clk 0:02:59]} 9. Rc1 {[%clk 0:02:40]}  Nbd7 {[%clk 0:02:58]} 10. Bf4 {[%clk 0:02:38]}  dxc4 {[%clk 0:02:48]} 11. Qa4 {[%clk 0:02:17]}  c5 {[%clk 0:02:46]} 12. dxc5 {[%clk 0:02:12]}  Nxc5 {[%clk 0:02:45]} 13. Qxc4 {[%clk 0:02:12]}  Ba6 {[%clk 0:02:38]} 14. Nb5 {[%clk 0:02:05]}  Qe8 {[%clk 0:02:24]} 15. Nfd4 {[%clk 0:01:51]}  Rc8 {[%clk 0:02:24]} 16. a4 {[%clk 0:01:47]}  Nfd7 {[%clk 0:02:05]} 17. Be3 {[%clk 0:01:27]}  Ne5 {[%clk 0:01:55]} 18. Qa2 {[%clk 0:01:23]}  Qd7 {[%clk 0:01:41]} 19. Rfd1 {[%clk 0:01:21]}  Rfd8 {[%clk 0:01:41]} 20. b3 {[%clk 0:01:01]}  Ng4 {[%clk 0:01:37]} 21. Qb1 {[%clk 0:00:40]}  Nxe3 {[%clk 0:01:35]} 22. fxe3 {[%clk 0:00:41]}  Bxb5 {[%clk 0:01:12]} 23. axb5 {[%clk 0:00:39]}  Qc7 {[%clk 0:01:10]} 24. Nc6 {[%clk 0:00:35]}  Rxd1+ {[%clk 0:01:10]} 25. Rxd1 {[%clk 0:00:36]}  Bf6 {[%clk 0:01:09]} 26. b4 {[%clk 0:00:33]}  Nd7 {[%clk 0:01:04]} 27. Qa2 {[%clk 0:00:27]}  Ne5 {[%clk 0:01:01]} 28. Qxa7 {[%clk 0:00:19]}  Qxa7 {[%clk 0:00:54]} 29. Nxa7 {[%clk 0:00:19]}  Rc4 {[%clk 0:00:51]} 30. Nc6 {[%clk 0:00:19]}  g6 {[%clk 0:00:47]} 31. Bf3 {[%clk 0:00:17]}  Kg7 {[%clk 0:00:43]} 32. Kg2 {[%clk 0:00:14]}  h5 {[%clk 0:00:42]} 33. Rd2 {[%clk 0:00:12]}  Rc3 {[%clk 0:00:42]} 34. Ra2 {[%clk 0:00:11]}  Rxe3 {[%clk 0:00:33]} 35. Ra6 {[%clk 0:00:10]}  Nc4 {[%clk 0:00:33]} 36. Ra7 {[%clk 0:00:08]}  Rb3 {[%clk 0:00:33]} 37. Rb7 {[%clk 0:00:05]}  h4 {[%clk 0:00:32]} 38. gxh4 {[%clk 0:00:05]}  Bxh4 {[%clk 0:00:32]} 0-1


[Site "https://www.chess.com"]

[Event "Titled Tuesday Blitz November 22 Late 2022"]
[White "Torres Dominguez, David"]
[Black "Schut, Han"]
[WhiteFideId "2220857"]
[BlackFideId "1005561"]
[WhiteElo "2037"]
[BlackElo "2024"]
[Result "1-0"]
[Round "08"]
[TimeControl "180+1"]
[Date "2022.11.23"]
[WhiteClock "0:01:45"]
[BlackClock "0:01:16"]

1. e4 {[%clk 0:03:00]}  c5 {[%clk 0:03:00]} 2. Nf3 {[%clk 0:03:00]}  d6 {[%clk 0:03:00]} 3. d4 {[%clk 0:03:00]}  cxd4 {[%clk 0:03:01]} 4. Nxd4 {[%clk 0:03:01]}  Nf6 {[%clk 0:03:01]} 5. Nc3 {[%clk 0:03:01]}  g6 {[%clk 0:03:02]} 6. Be3 {[%clk 0:03:00]}  Bg7 {[%clk 0:03:03]} 7. f3 {[%clk 0:02:59]}  O-O {[%clk 0:03:03]} 8. Qd2 {[%clk 0:02:59]}  Nc6 {[%clk 0:03:03]} 9. O-O-O {[%clk 0:03:00]}  d5 {[%clk 0:03:04]} 10. exd5 {[%clk 0:03:00]}  Nxd5 {[%clk 0:03:04]} 11. Nxd5 {[%clk 0:03:01]}  Qxd5 {[%clk 0:03:04]} 12. Nxc6 {[%clk 0:03:01]}  Qxc6 {[%clk 0:03:04]} 13. Bh6 {[%clk 0:03:01]}  Bxh6 {[%clk 0:02:52]} 14. Qxh6 {[%clk 0:03:01]}  Bf5 {[%clk 0:02:53]} 15. Bd3 {[%clk 0:03:01]}  Bxd3 {[%clk 0:02:28]} 16. Rxd3 {[%clk 0:03:02]}  Rfc8 {[%clk 0:02:28]} 17. Qd2 {[%clk 0:03:02]}  Rc7 {[%clk 0:02:21]} 18. Rd1 {[%clk 0:03:01]}  Kg7 {[%clk 0:02:17]} 19. Rd7 {[%clk 0:02:54]}  Rac8 {[%clk 0:02:09]} 20. Rxc7 {[%clk 0:02:53]}  Rxc7 {[%clk 0:02:10]} 21. Kb1 {[%clk 0:02:42]}  f6 {[%clk 0:02:02]} 22. c3 {[%clk 0:02:31]}  b5 {[%clk 0:01:51]} 23. Qd5 {[%clk 0:02:26]}  a6 {[%clk 0:01:41]} 24. Qxc6 {[%clk 0:02:22]}  Rxc6 {[%clk 0:01:42]} 25. Kc2 {[%clk 0:02:19]}  Kf7 {[%clk 0:01:41]} 26. Rd8 {[%clk 0:02:14]}  h5 {[%clk 0:01:41]} 27. Kd3 {[%clk 0:02:12]}  Ke6 {[%clk 0:01:37]} 28. b3 {[%clk 0:02:10]}  Rd6+ {[%clk 0:01:37]} 29. Rxd6+ {[%clk 0:02:09]}  Kxd6 {[%clk 0:01:38]} 30. c4 {[%clk 0:02:09]}  Kc5 {[%clk 0:01:36]} 31. cxb5 {[%clk 0:02:07]}  axb5 {[%clk 0:01:36]} 32. a3 {[%clk 0:02:07]}  e5 {[%clk 0:01:31]} 33. Ke4 {[%clk 0:02:05]}  Kd6 {[%clk 0:01:20]} 34. g4 {[%clk 0:02:05]}  hxg4 {[%clk 0:01:20]} 35. fxg4 {[%clk 0:02:05]}  Ke6 {[%clk 0:01:21]} 36. h4 {[%clk 0:01:54]}  f5+ {[%clk 0:01:17]} 37. gxf5+ {[%clk 0:01:53]}  gxf5+ {[%clk 0:01:18]} 38. Ke3 {[%clk 0:01:53]}  Kd5 {[%clk 0:01:17]} 39. h5 {[%clk 0:01:53]}  f4+ {[%clk 0:01:17]} 40. Ke2 {[%clk 0:01:49]}  Kd4 {[%clk 0:01:15]} 41. h6 {[%clk 0:01:48]}  f3+ {[%clk 0:01:16]} 42. Kxf3 {[%clk 0:01:47]}  Kd3 {[%clk 0:01:16]} 43. Kf2 {[%clk 0:01:46]}  Kd2 {[%clk 0:01:16]} 44. Kf3 {[%clk 0:01:45]}  e4+ {[%clk 0:01:16]} 45. Kxe4 {[%clk 0:01:45]} 1-0


[Site "https://www.chess.com"]

[Event "Titled Tuesday Blitz November 22 Late 2022"]
[White "Vlassov, Nikolai"]
[Black "Rubio Tent, Francisco"]
[WhiteFideId "4103360"]
[BlackFideId "2238233"]
[WhiteElo "2324"]
[BlackElo "2211"]
[Result "1-0"]
[Round "08"]
[TimeControl "180+1"]
[Date "2022.11.23"]
[WhiteClock "0:00:13"]
[BlackClock "0:00:01"]

1. e4 {[%clk 0:03:00]}  c6 {[%clk 0:03:00]} 2. d4 {[%clk 0:03:00]}  d5 {[%clk 0:03:01]} 3. e5 {[%clk 0:03:00]}  Bf5 {[%clk 0:02:59]} 4. Nf3 {[%clk 0:03:00]}  e6 {[%clk 0:02:59]} 5. Be2 {[%clk 0:03:00]}  Nd7 {[%clk 0:02:59]} 6. O-O {[%clk 0:02:59]}  Ne7 {[%clk 0:02:59]} 7. Nbd2 {[%clk 0:02:58]}  Bg6 {[%clk 0:03:00]} 8. Nb3 {[%clk 0:02:58]}  Nf5 {[%clk 0:03:00]} 9. Bd2 {[%clk 0:02:58]}  Be7 {[%clk 0:03:00]} 10. a4 {[%clk 0:02:56]}  O-O {[%clk 0:03:00]} 11. a5 {[%clk 0:02:57]}  Rc8 {[%clk 0:02:59]} 12. Rc1 {[%clk 0:02:53]}  c5 {[%clk 0:02:59]} 13. c4 {[%clk 0:02:52]}  dxc4 {[%clk 0:02:45]} 14. Bxc4 {[%clk 0:02:52]}  cxd4 {[%clk 0:02:45]} 15. Bb5 {[%clk 0:02:27]}  Rxc1 {[%clk 0:02:35]} 16. Qxc1 {[%clk 0:02:18]}  a6 {[%clk 0:02:36]} 17. Bd3 {[%clk 0:02:11]}  Qb8 {[%clk 0:02:27]} 18. Re1 {[%clk 0:02:08]}  Rc8 {[%clk 0:02:21]} 19. Qb1 {[%clk 0:02:02]}  Nc5 {[%clk 0:02:19]} 20. Nxc5 {[%clk 0:01:59]}  Bxc5 {[%clk 0:02:10]} 21. b4 {[%clk 0:01:58]}  Ba7 {[%clk 0:01:48]} 22. b5 {[%clk 0:01:58]}  axb5 {[%clk 0:01:47]} 23. Qxb5 {[%clk 0:01:56]}  h6 {[%clk 0:01:28]} 24. Rb1 {[%clk 0:01:55]}  Rc7 {[%clk 0:01:18]} 25. a6 {[%clk 0:01:52]}  b6 {[%clk 0:01:17]} 26. Rc1 {[%clk 0:01:41]}  Kh7 {[%clk 0:01:09]} 27. h3 {[%clk 0:01:33]}  Rxc1+ {[%clk 0:01:04]} 28. Bxc1 {[%clk 0:01:33]}  Qc7 {[%clk 0:01:05]} 29. Bb2 {[%clk 0:01:28]}  Qc5 {[%clk 0:00:40]} 30. g4 {[%clk 0:01:00]}  Ne7 {[%clk 0:00:29]} 31. Nxd4 {[%clk 0:00:58]}  Nd5 {[%clk 0:00:19]} 32. Qxc5 {[%clk 0:00:54]}  bxc5 {[%clk 0:00:20]} 33. Nc6 {[%clk 0:00:54]}  Bxd3 {[%clk 0:00:19]} 34. Nxa7 {[%clk 0:00:50]}  Bxa6 {[%clk 0:00:20]} 35. Nc6 {[%clk 0:00:48]}  Kg6 {[%clk 0:00:11]} 36. Bc1 {[%clk 0:00:41]}  Bb5 {[%clk 0:00:10]} 37. Na5 {[%clk 0:00:38]}  Nc3 {[%clk 0:00:07]} 38. Kg2 {[%clk 0:00:34]}  Bd3 {[%clk 0:00:06]} 39. f4 {[%clk 0:00:30]}  c4 {[%clk 0:00:05]} 40. Kf3 {[%clk 0:00:30]}  Nd5 {[%clk 0:00:03]} 41. Nb7 {[%clk 0:00:17]}  f6 {[%clk 0:00:02]} 42. Nd6 {[%clk 0:00:16]}  fxe5 {[%clk 0:00:02]} 43. fxe5 {[%clk 0:00:16]}  Nc3 {[%clk 0:00:01]} 44. h4 {[%clk 0:00:16]}  h5 {[%clk 0:00:01]} 45. gxh5+ {[%clk 0:00:14]}  Kxh5 {[%clk 0:00:02]} 46. Bg5 {[%clk 0:00:15]}  Nd5 {[%clk 0:00:02]} 47. Nb5 {[%clk 0:00:13]}  Kg6 {[%clk 0:00:01]} 48. Nd4 {[%clk 0:00:13]} 1-0


[Site "https://www.chess.com"]